[Event "55th Biel Festival ATO 2022"]
[Site "Biel"]
[Date "2022.07.18"]
[Round "5.10"]
[White "Ciarletta, Ulysse"]
[Black "Hamad Bader"]
[Result "0-1"]
[ECO "E01"]
[WhiteElo "1814"]
[BlackElo "1918"]
[Annotator "TA"]
[PlyCount "88"]
[EventDate "2022.07.13"]
[EventType "swiss"]
[EventCountry "SUI"]
[SourceTitle "playchess.com"]
[Source "ChessBase"]
[SourceQuality "1"]
[TimeControl "40/5400+30:1800+30"]

{[%evp 9,88,0,18,18,18,15,14,10,18,6,2,5,22,24,76,51,58,38,42,41,43,43,107,98,108,115,97,107,132,47,49,29,39,45,37,0,66,75,79,77,73,59,69,62,62,9,24,24,66,41,41,41,106,111,116,108,232,197,208,0,0,0,0,-127,0,0,0,0,0,-302,-311,-462,-471,-1106,-1001,-1079,-1079,-29993,-29994,-29998,-29999]} 1. d4 {[%emt 0:00:07]} Nf6 {[%emt 0:00:07]} 2. c4 {[%emt 0:00:05]} e6 {[%emt 0:00:06]} 3. g3 {[%emt 0:00:07]} d5 {[%emt 0:01:38]} 4. Bg2 {[%emt 0:00:10]} Bb4+ {[%emt 0:00:17]} 5. Bd2 {[%emt 0:00:13]} Bd6 {[%emt 0:01:27]} 6. Nf3 {[%emt 0:02:49] E01: Catalan: Early deviations.} c6 {[%emt 0:01:28]} 7. b3 {[%emt 0:00:30]} Ne4 {[%emt 0:01:18]} 8. O-O {[%emt 0:00:56] The position is equal.} f5 {[%emt 0:01:02]} 9. Bf4 {[%emt 0:05:45]} Bxf4 {[%emt 0:03:20]} 10. gxf4 {[%emt 0:00:06] [#]} h6 $146 {[%emt 0:19:38]} ({Predecessor:} 10... O-O 11. e3 Bd7 12. Nbd2 Be8 13. Nxe4 fxe4 14. Ng5 Rf6 15. f3 h6 16. Nh3 Bh5 {½-½ (45) Mihajlov,S (2101)-Gronn,A (2368) Oslo 2013}) 11. Ne5 {[%emt 0:01:00]} Rg8 {[%emt 0:01:41]} (11... Nd7 $11 {keeps the balance.}) 12. e3 {[%emt 0:04:57]} (12. f3 $5 {[%cal Rf3e4]} Nd6 13. cxd5 $16) 12... Qh4 {[%emt 0:00:57] Inhibits Qh5+.} 13. Ng6 {[%emt 0:03:07]} Qf6 {[%emt 0:00:10]} 14. Qh5 {[%emt 0:02:06]} Qf7 {[%emt 0:01:33] aiming for ...Nf6.} 15. Bxe4 {[%emt 0:00:09] Black must now prevent Bf3.} dxe4 {[%emt 0:09:03]} (15... Nd7 $1 $14 16. Bf3 Nf6) 16. Kh1 $1 $16 {[%emt 0:01:09]} Nd7 {[%emt 0:00:29] Hoping for ...Nf6.} 17. Rg1 $1 {[%emt 0:00:34]} Nf6 {[%emt 0:00:09]} 18. Qe2 {[%emt 0:01:52]} Ng4 {[%emt 0:02:09]} 19. Ne5 {[%emt 0:01:30]} (19. Rxg4 $16 fxg4 20. Ne5) 19... Nxe5 $14 {[%emt 0:00:42]} 20. dxe5 {[%emt 0:00:12]} Bd7 {[%emt 0:00:27]} 21. c5 {[%emt 0:00:32]} O-O-O {[%emt 0:03:05]} 22. Nd2 {[%emt 0:00:27][%cal Bb1d2,Bd2c4,Bc4d6][%mdl 32]} g5 {[%emt 0:03:15]} (22... Be8 $1 $11) 23. Nc4 {[%emt 0:00:26] Threatens to win with Nd6+.} Qe7 {[%emt 0:00:21]} 24. Nd6+ {[%emt 0:00:16]} Kb8 {[%emt 0:00:25]} 25. a4 {[%emt 0:07:29]} Rg7 {[%emt 0:07:43]} 26. Qh5 {[%emt 0:08:22]} Rdg8 {[%emt 0:04:24]} 27. Rg3 {[%emt 0:05:15]} (27. Qxh6 Rh7 28. Qf6 Rxh2+ 29. Kxh2 Qh7+ 30. Kg2 gxf4+ 31. Kf1 Qh3+ 32. Ke2 Qf3+ 33. Kf1 Qh3+ 34. Ke2 Qf3+ 35. Kf1 Qh3+ $11) (27. Rad1 $1 $14) 27... g4 {[%emt 0:07:21]} 28. Rgg1 {[%emt 0:08:39]} (28. Qxh6 $2 Rg6 29. Qh5 Qg7 $19) 28... Qd8 {[%emt 0:10:31]} 29. b4 {[%emt 0:03:14]} (29. Qxh6 $2 Rh8 $1 30. Qxh8 (30. Qxg7 $2 Rxh2+ 31. Kxh2 Qh4+ 32. Kg2 Qh3#) 30... Qxh8 $19) (29. Rgd1 {keeps more tension.} a5 30. Kg2 Be8 31. Nxe8 Qxe8 32. Qxe8+ Rxe8 33. Kg3) 29... Be8 {[%emt 0:10:03]} 30. Nxe8 {[%emt 0:13:04]} Rxe8 {[%emt 0:00:24]} (30... Qxe8 $14 31. Qxe8+ Rxe8) 31. Rgd1 $16 {[%emt 0:02:25]} (31. Qxh6 $2 Rh8 $1 32. Rad1 (32. Qxg7 $2 Rxh2+ 33. Kxh2 Qh4+ 34. Kg2 Qh3#) 32... Qg8 33. Qxh8 Qxh8 $19) 31... Qe7 {[%emt 0:00:07]} 32. Rd6 {[%emt 0:00:55]} a6 {[%emt 0:03:50]} (32... Qf7 $16 33. Qxf7 (33. Qxh6 Rh7 $11) 33... Rxf7) 33. Rad1 {[%emt 0:01:16] And now Rd7 would win.} ({And not} 33. Qxh6 Rh7 34. Qg5 Qxg5 35. fxg5 Reh8 $11) 33... Rh8 {[%emt 0:00:26]} 34. Rd7 $2 {[%emt 0:05:31]} (34. Kg2 $1 $18) 34... Qxd7 $11 {[%emt 0:00:09]} 35. Rxd7 {[%emt 0:00:05]} Rxd7 {[%emt 0:00:04][%mdl 4096] Endgame KQ-KRR} 36. Qg6 {[%emt 0:00:10] [#]} (36. a5 $1 $11 {was the only way to keep the balance.}) 36... Re7 {[%emt 0:02:38]} ({Don't play} 36... Rd1+ $6 37. Kg2 h5 38. Qf6 $11 (38. Qxe6 $2 h4 $19)) (36... h5 $1 $17 37. h4 (37. Qxe6 $2 Rd1+ 38. Kg2 h4 $19) 37... Re7) 37. Qf6 {[%emt 0:00:10][%csl LRe7,LRh8]} Rhh7 {[%emt 0:00:58]} 38. Kg2 {[%emt 0:04:39]} h5 {[%emt 0:00:42][%cal Bh6h5,Bh5h4,Bh4h3][%mdl 32]} 39. Kf1 $2 {[%emt 0:00:59][%mdl 8192]} (39. Qf8+ $11 Ka7 40. Qd8) 39... h4 $19 {[%emt 0:00:51]} 40. Kg2 {[%emt 0:03:27] [#]} (40. b5 $142 cxb5 41. Qf8+ Ka7 42. axb5 axb5 43. Qd8) 40... Ka7 $1 {[%emt 0:01:32]} 41. a5 {[%emt 0:31:51]} (41. Qf8 $142 g3 42. hxg3) 41... Rd7 {[%emt 0:14:24]} 42. Qg6 {[%emt 0:00:00]} g3 {[%emt 0:04:12]} 43. Qxe6 {[%emt 0:00:00]} h3+ {[%emt 0:01:39]} 44. Kxg3 {[%emt 0:00:00]} Rdg7+ {[%emt 0:00:08] Never resign too early!  Weighted Error Value: White=0.53/Black=0.19 (very precise)} 0-1

[Event "55th Biel Festival ATO 2022"]
[Site "Biel"]
[Date "2022.07.19"]
[Round "6.1"]
[White "Hari Charan Sai Kalluri"]
[Black "Sala, Matteo"]
[Result "0-1"]
[ECO "D90"]
[WhiteElo "2041"]
[BlackElo "1708"]
[Annotator "TA"]
[PlyCount "74"]
[EventDate "2022.07.13"]
[EventType "swiss"]
[EventCountry "SUI"]
[SourceTitle "playchess.com"]
[Source "ChessBase"]
[SourceQuality "1"]
[TimeControl "40/5400+30:1800+30"]

{[%evp 9,74,0,19,14,16,18,23,16,20,11,17,16,20,11,33,47,613,591,575,73,67,0,0,-31,-31,-38,0,0,0,0,25,-115,-112,-116,-137,-460,-447,-449,-405,-520,-456,-432,-454,-445,-442,-677,-681,-1565,-1412,-2027,-1085,-952,-807,-739,0,-885,-752,-1378,-1375,-1289,-814,-764,-748,-1052,-989,-955,-947]} 1. d4 {[%emt 0:00:10]} Nf6 {[%emt 0:00:10]} 2. c4 {[%emt 0:00:44]} g6 {[%emt 0:00:05]} 3. Nc3 {[%emt 0:00:29]} d5 {[%emt 0:00:04]} 4. Nf3 {[%emt 0:00:06]} Bg7 {[%emt 0:00:10]} 5. h4 {[%emt 0:01:38]} O-O {[%emt 0:21:54]} 6. cxd5 {[%emt 0:00:16] D90: Grünfeld: 4 Nf3 Bg7 sidelines.} Nxd5 {[%emt 0:00:13][%cal Oc7c5]} 7. h5 {[%emt 0:00:04]} c5 {[%emt 0:10:41]} 8. hxg6 {[%emt 0:04:38] White has an edge.} hxg6 {[%emt 0:00:16]} 9. Bh6 {[%emt 0:00:05]} ({Don't play} 9. e4 Nxc3 10. bxc3 cxd4 11. Nxd4 (11. cxd4 Nc6 $15) 11... Qa5 $15) 9... Bxh6 {[%emt 0:03:27]} (9... Nxc3 {seems wilder.} 10. bxc3 Bxh6 11. Rxh6 Kg7) 10. Rxh6 {[%emt 0:00:06]} Nxc3 {[%emt 0:04:22]} 11. bxc3 {[%emt 0:00:08]} cxd4 {[%emt 0:01:24]} 12. Qd2 {[%emt 0:01:50][%cal Oh6h8] [#] Strongly threatening Rh8+!} dxc3 $146 {[%emt 0:13:56][%mdl 8192]} (12... Kg7 $14) ({Predecessor:} 12... Kg7 13. cxd4 Nc6 14. Rh4 Rh8 15. Rxh8 Qxh8 16. Rb1 Kg8 17. e3 Qf6 18. Be2 b6 19. d5 Ne5 20. Rc1 Bf5 21. Nxe5 {½-½ (21) Sargissian,G (2681)-Tari,A (2620) Helsingor 2019}) 13. Qxc3 $18 {[%emt 0:00:09][%csl Gc3][%cal Rh6h8]} f6 {[%emt 0:00:07]} 14. Rxg6+ {[%emt 0:12:48]} (14. Rd1 $18 {has better winning chances.} Qe8 15. Nh4) 14... Kf7 $16 {[%emt 0:00:07]} 15. Rg3 {[%emt 0:01:41]} (15. Rh6 $14 Nc6 16. Rd1) 15... Nc6 $1 $11 {[%emt 0:05:13]} 16. Qc2 {[%emt 0:08:58]} Qa5+ {[%emt 0:03:42]} 17. Nd2 {[%emt 0:00:11]} Qf5 {[%emt 0:04:58] Prevents Qg6+.} (17... Bf5 $5 {[%cal Rf5c2]} 18. e4 Be6 $15) 18. e4 {[%emt 0:07:03]} Qe5 {[%emt 0:00:05]} 19. Rb1 {[%emt 0:02:39]} Nd4 {[%emt 0:05:30]} 20. Qa4 {[%emt 0:06:28]} (20. Qc3 $1 $11 {keeps the balance.}) 20... Be6 {[%emt 0:03:36] And now ...Rac8 would win.} 21. Rd3 {[%emt 0:02:29] [#]} ({Not} 21. Rxb7 $2 Rac8 22. Kd1 Qc5 $19) 21... Rfd8 {[%emt 0:01:48] Black is more active.} 22. Rb4 $2 {[%emt 0:07:24][%mdl 8192]} (22. Rc1 $17 {nothing else works.}) 22... b5 $19 {[%emt 0:02:14]} 23. Qd1 {[%emt 0:06:22]} Rac8 {[%emt 0:00:49]} 24. Rb2 {[%emt 0:20:14] [#]} Bg4 $1 {[%emt 0:04:07][%mdl 512]} 25. Qb1 {[%emt 0:03:11]} Qc5 {[%emt 0:06:03] ( -> ...Qc1+)} 26. f3 {[%emt 0:03:32]} Be6 {[%emt 0:00:22]} 27. Be2 {[%emt 0:07:22]} (27. f4 $142 Rh8 28. Qd1 Nc2+ 29. Rxc2 Qxc2 30. Qxc2 Rxc2 31. Ra3) 27... Rh8 {[%emt 0:04:25]} 28. Kd1 {[%emt 0:01:52]} Rh1+ {[%emt 0:00:46]} 29. Bf1 {[%emt 0:00:02]} a5 {[%emt 0:01:50] Threatens to win with ...Bc4.} 30. Ke1 {[%emt 0:01:25]} Nc2+ {[%emt 0:01:52]} 31. Ke2 {[%emt 0:00:46]} Nd4+ {[%emt 0:00:09]} 32. Ke1 $1 {[%emt 0:00:08]} Kg7 {[%emt 0:01:15] ...Qe5 is the strong threat. Black is clearly winning.} 33. Nb3 {[%emt 0:00:52]} Bxb3 {[%emt 0:00:28]} 34. axb3 {[%emt 0:00:32]} Qc1+ {[%emt 0:00:46]} 35. Qxc1 {[%emt 0:00:25]} Rxc1+ {[%emt 0:00:05]} 36. Kd2 {[%emt 0:00:01]} Rcxf1 {[%emt 0:00:38]} 37. Ke3 {[%emt 0:01:15]} e5 {[%emt 0:00:25] Never resign too early!  Weighted Error Value: White=1.12/Black=0.63} 0-1

[Event "55th Biel Festival ATO 2022"]
[Site "Biel"]
[Date "2022.07.19"]
[Round "6.2"]
[White "Harisurya Bharadwaj Gundepudi"]
[Black "Stijve Niels"]
[Result "1-0"]
[ECO "D00"]
[WhiteElo "1924"]
[BlackElo "1958"]
[Annotator "TA"]
[PlyCount "73"]
[EventDate "2022.07.13"]
[EventType "swiss"]
[EventCountry "SUI"]
[SourceTitle "playchess.com"]
[Source "ChessBase"]
[SourceQuality "1"]
[TimeControl "40/5400+30:1800+30"]

{[%evp 9,72,0,-1,-14,0,0,-4,0,-1,-22,45,-2,39,33,58,27,45,0,4,0,0,-7,63,17,44,54,68,72,107,110,106,102,92,108,240,254,239,253,510,495,518,504,522,504,929,925,1273,1271,1170,1147,3372,29986,29979,2962,29988,29989,29991,29992,29992,29991,29997,29998,29998,29999,29999]} 1. d4 {[%emt 0:00:29]} d5 {[%emt 0:00:14]} 2. Bf4 {[%emt 0:00:08]} Nf6 {[%emt 0:00:09]} 3. e3 {[%emt 0:00:07]} c5 {[%emt 0:00:12]} 4. c3 {[%emt 0:00:09]} Nc6 {[%emt 0:00:11]} 5. Nd2 {[%emt 0:00:05]} Bf5 {[%emt 0:00:17]} 6. Qb3 {[%emt 0:04:30]} Qd7 {[%emt 0:00:24]} 7. Ngf3 {[%emt 0:00:11]} c4 {[%emt 0:00:15]} 8. Qd1 {[%emt 0:00:11] The position is equal.} e6 {[%emt 0:01:54]} 9. Ne5 {[%emt 0:03:45]} Qc8 {[%emt 0:09:56]} ({Better is} 9... Nxe5 $11 10. Bxe5 Be7) 10. Be2 {[%emt 0:02:01]} (10. g4 $14 {was preferrable.} Bg6 11. Nxg6 hxg6 12. Qe2) 10... Be7 {[%emt 0:07:33]} 11. g4 {[%emt 0:06:18]} Bg6 {[%emt 0:15:58]} 12. h4 {[%emt 0:18:00] h5 is the strong threat.} Nxe5 {[%emt 0:14:30]} 13. Bxe5 {[%emt 0:01:27]} h6 $1 {[%emt 0:04:19]} 14. a4 {[%emt 0:03:24]} Qd8 {[%emt 0:11:56]} 15. h5 {[%emt 0:02:24]} Be4 {[%emt 0:07:59] [#]} (15... Bh7 $11) 16. Rg1 {[%emt 0:00:31]} ({Much weaker is} 16. Nxe4 Nxe4 17. Bf3 (17. Bxg7 Bh4 $11) 17... f6 $11) (16. Bxf6 $1 $14 {might be stronger.} Bxh1 17. Bxg7) 16... Rc8 $11 {[%emt 0:08:37]} 17. b3 {[%emt 0:21:27]} ({But not} 17. Nxe4 Nxe4 18. Bf3 (18. Bxg7 Bh4 $17) 18... O-O $11) 17... Qa5 {[%emt 0:03:33]} 18. Bxf6 {[%emt 0:02:09]} (18. bxc4 {with more complications.} Qxc3 19. Rc1 Qa3 20. Kf1) 18... gxf6 {[%emt 0:02:24]} 19. Nxe4 {[%emt 0:01:47]} dxe4 {[%emt 0:00:24]} 20. bxc4 {[%emt 0:04:40] And now Qc2 would win.} Qxc3+ {[%emt 0:00:41]} 21. Kf1 {[%emt 0:00:03]} f5 {[%emt 0:03:44] [#] This costs Black the game.} (21... Rc7 $16 {was called for.}) 22. gxf5 $1 $18 {[%emt 0:00:57]} exf5 {[%emt 0:00:03][%cal Of5f4] [#]} 23. Rb1 $1 {[%emt 0:00:19][%cal Ba1b1,Bb1b3,Bb3b7][%mdl 32]} Bb4 $2 {[%emt 0:02:43]} (23... Rc7 24. Rb3 Qa5) 24. Rb3 {[%emt 0:00:32]} Qd2 {[%emt 0:00:28]} 25. Qxd2 {[%emt 0:00:07]} Bxd2 {[%emt 0:00:06]} 26. Rxb7 {[%emt 0:00:08]} a5 {[%emt 0:01:17]} (26... Rf8 $142 27. c5 Kd8 28. Rxa7 Rc7) 27. c5 {[%emt 0:00:19] Rg7 would kill now.} Kf8 {[%emt 0:01:33] Prevents Rg7.} 28. Bc4 {[%emt 0:00:19]} Rh7 {[%emt 0:00:30]} 29. Be6 {[%emt 0:00:36]} fxe6 {[%emt 0:02:20]} 30. Rxh7 {[%emt 0:00:06][%mdl 4096] Endgame KRR-KRB} Rc6 {[%emt 0:00:22]} 31. Ke2 {[%emt 0:00:38]} (31. Rxh6 $142 Bb4 32. Rh8+ Kf7 33. Rh7+ Kf8 34. h6 e5 35. Rh8+ Kf7 36. Rg7+ Ke6 37. Rg6+ Kd5 38. Rd8+ Kc4 39. Rxc6) 31... Bc3 {[%emt 0:00:23]} 32. Rxh6 {[%emt 0:00:14] White mates.} Kf7 {[%emt 0:00:52]} 33. Rh7+ {[%emt 0:00:05]} Kf8 {[%emt 0:00:14]} 34. h6 {[%emt 0:01:17]} f4 {[%emt 0:00:45]} 35. Rh8+ {[%emt 0:00:08]} Ke7 {[%emt 0:00:17]} 36. Rg7+ {[%emt 0:00:05]} Kf6 {[%emt 0:00:06]} 37. Rf8# {[%emt 0:00:06] Weighted Error Value: White=0.08 (flawless) /Black=0.54} 1-0

[Event "55th Biel Festival ATO 2022"]
[Site "Biel"]
[Date "2022.07.19"]
[Round "6.3"]
[White "Wiesmann, Dominique"]
[Black "Al Helaoy Majed"]
[Result "0-1"]
[ECO "A13"]
[WhiteElo "1914"]
[BlackElo "2015"]
[Annotator "TA"]
[PlyCount "118"]
[EventDate "2022.07.13"]
[EventType "swiss"]
[EventCountry "SUI"]
[SourceTitle "playchess.com"]
[Source "ChessBase"]
[SourceQuality "1"]
[TimeControl "40/5400+30:1800+30"]

{[%evp 10,118,12,3,23,2,19,9,13,10,37,37,63,59,143,143,140,57,56,60,71,28,39,10,29,25,59,20,41,-156,22,0,0,-160,-42,-29,64,-8,-9,-58,-52,-83,-80,-103,0,-12,100,84,83,90,185,-47,-28,-52,-49,-71,0,-133,-98,-130,-121,-192,-170,-191,-188,-181,-88,-175,-156,-163,1353,1309,29975,29976,29987,29988,29991,992,2315,0,0,0,0,-993,-585,-575,-569,-566,-565,-659,-659,-659,-659,-659,-659,-652,-652,-652,-652,-639,-635,-579,-526,-652,-644,-642,-637,-630,-584,-560,-560]} 1. Nf3 {[%emt 0:00:03]} Nf6 {[%emt 0:01:44]} 2. e3 {[%emt 0:00:17]} d5 {[%emt 0:02:30]} 3. c4 {[%emt 0:00:25]} e6 {[%emt 0:02:38]} 4. b3 {[%emt 0:03:45]} Be7 {[%emt 0:00:19]} 5. Bb2 {[%emt 0:02:30]} O-O {[%emt 0:03:31]} 6. Nc3 {[%emt 0:03:59]} Nbd7 {[%emt 0:01:36] A13: English Opening: 1...e6.} 7. Be2 {[%emt 0:01:48]} c6 {[%emt 0:08:27]} 8. d4 {[%emt 0:02:18]} Qc7 {[%emt 0:09:59] The position is equal.} 9. Qc2 {[%emt 0:05:10] [#]} Rd8 $146 {[%emt 0:06:09]} ({Predecessor:} 9... b6 10. O-O Bb7 11. Rad1 Rac8 12. Bd3 h6 13. Rfe1 c5 14. cxd5 Nxd5 15. Nxd5 exd5 16. dxc5 bxc5 {1-0 (32) Vigorito,D (2370)-Potula,K (2075) Charlotte 2017}) 10. Rc1 {[%emt 0:01:20]} Qa5 {[%emt 0:05:08]} 11. O-O {[%emt 0:00:59]} Ne4 {[%emt 0:02:04]} (11... Ba3 $14) 12. Nxe4 $16 {[%emt 0:06:03]} dxe4 {[%emt 0:00:01]} 13. Bc3 {[%emt 0:05:28]} (13. Qxe4 $16 Qxa2 14. Qc2) 13... Qf5 $14 {[%emt 0:00:20]} 14. Nd2 {[%emt 0:00:13]} Nf6 {[%emt 0:00:34]} 15. f3 {[%emt 0:07:11][%cal Rf3e4]} (15. c5 $5 {[%cal Rd2c4]}) 15... Qg5 $1 {[%emt 0:08:14]} 16. f4 {[%emt 0:01:42]} Qf5 {[%emt 0:04:42]} 17. h3 {[%emt 0:01:42]} h5 {[%emt 0:00:23]} 18. Kh2 {[%emt 0:03:04][%cal Od2e4]} Bd6 {[%emt 0:09:29]} 19. g3 $2 {[%emt 0:01:55]} (19. Rf2 $14 {stays ahead.}) 19... b6 $2 {[%emt 0:00:41]} (19... e5 $17 20. g4 hxg4 21. Bxg4 Qh7 22. Bxc8 exf4 23. exf4 (23. c5 $2 Bc7 $19) 23... Rdxc8) 20. Rg1 {[%emt 0:05:00]} (20. Nxe4 $5 Nxe4 21. Bd3 $11) 20... e5 {[%emt 0:08:53][%csl Gc8][%cal Rf5h3]} 21. Bf1 {[%emt 0:01:55]} (21. g4 $1 $11 Nxg4+ 22. Bxg4 (22. hxg4 hxg4 23. Kg2 exf4 $11) 22... hxg4 23. fxe5 Qf2+ 24. Rg2 Qxe3 25. hxg4) 21... exf4 {[%emt 0:02:05]} (21... exd4 $17 22. Bxd4 Bb4) 22. gxf4 $15 {[%emt 0:02:46] [#]} Kf8 {[%emt 0:04:54]} (22... Bxf4+ $1 $11 23. exf4 Qxf4+ 24. Kh1 e3) 23. Kh1 {[%emt 0:10:53]} (23. d5 $14) 23... Qh7 $11 {[%emt 0:05:48]} 24. Bg2 {[%emt 0:04:58]} (24. Nb1 $11 {deserves consideration.}) 24... Bf5 $1 $15 {[%emt 0:01:22]} 25. Nf1 {[%emt 0:00:51]} h4 {[%emt 0:01:06]} 26. Rd1 {[%emt 0:04:17]} Ke7 {[%emt 0:01:35]} (26... Be7 $17) 27. d5 {[%emt 0:04:07]} Nh5 {[%emt 0:04:23]} (27... cxd5 $11 {keeps the balance.} 28. cxd5 Rac8) 28. dxc6 $16 {[%emt 0:04:21]} Ng3+ {[%emt 0:00:02]} 29. Kh2 {[%emt 0:00:28]} g5 {[%emt 0:00:02] [#]} (29... Rac8 $16) 30. Be5 $2 {[%emt 0:02:58]} (30. Rxd6 $1 $18 {[%mdl 512]} Kxd6 31. fxg5) 30... Bxe5 $15 {[%emt 0:00:47]} 31. Rxd8 {[%emt 0:00:50]} Rxd8 {[%emt 0:00:01]} 32. fxe5 {[%emt 0:00:17]} Rd3 {[%emt 0:02:22]} ({Black should play} 32... Qg7 $1 $17 {[%cal Rg7e5]} 33. Qb2 (33. Nxg3 hxg3+ 34. Kh1 Qh7 $17) 33... g4) 33. c5 {[%emt 0:01:34]} (33. Qb2 $11) 33... Qh8 $17 {[%emt 0:00:49]} 34. Qb2 {[%emt 0:02:26]} bxc5 {[%emt 0:00:02] Black is much more active. The white rooks are badly placed.} 35. b4 {[%emt 0:00:54]} (35. Bh1 $17) 35... c4 {[%emt 0:00:55]} 36. b5 {[%emt 0:00:05]} Ke8 {[%emt 0:02:25]} 37. b6 {[%emt 0:03:34]} axb6 {[%emt 0:00:01]} (37... c3 $1 $19 {[%cal Rc3b2] is more deadly.} 38. Qb5 axb6 39. c7+ Ke7 40. Qxb6 Qxe5 41. Nxg3 hxg3+ 42. Kh1 Bc8) 38. Qb5 {[%emt 0:00:15]} (38. c7 $17) 38... Kf8 {[%emt 0:01:58] White must now prevent ...c3.} 39. c7 {[%emt 0:00:23][%cal Of1d2]} Ne2 $4 {[%emt 0:00:32][%mdl 8192] [#]} (39... c3 $19 40. Qb4+ Kg7 41. Qxb6 Be6) 40. Bxe4 $1 $18 {[%emt 0:00:50][%mdl 512] White wants to mate with Qb4+.} Bc8 {[%emt 0:00:48]} (40... Nxg1 41. Bxf5) 41. Rxg5 {[%emt 0:34:18]} Rd7 {[%emt 0:09:44]} 42. Qb4+ {[%emt 0:00:00]} Re7 {[%emt 0:00:12]} 43. Bf3 {[%emt 0:00:00]} (43. Qd6 $142 Nf4 44. exf4 Qg7 45. Rxg7 Kxg7 46. Qxe7 b5 47. f5 Kh6 48. Qf6+ Kh7 49. Qxf7+ Kh8 50. f6 c3 51. Qh7#) 43... Ng3 {[%emt 0:10:58] [#]} 44. Nd2 $2 {[%emt 0:00:00]} ({White must play} 44. Qd6 $1 $18 {[%cal Of3c6] White threatens Bc6! and mate.} Nf5 45. Qd8+ Re8 46. Bc6 Qxe5+ 47. Kg1) 44... Qh6 $36 {[%emt 0:01:02][%mdl 2048] Prevents Bc6. Black is pushing.} 45. Rg4 {[%emt 0:00:00] aiming for Qd6.} Qxe3 {[%emt 0:01:11] Dancing on a razor blade.} 46. Rxh4 $2 {[%emt 0:00:00][%mdl 8192]} (46. Qd6 $11 Qxd2+ 47. Bg2 Nf1+ 48. Kg1) 46... Qxe5 {[%emt 0:04:32] Black is clearly winning.} 47. Kg2 {[%emt 0:00:00]} Nf5 {[%emt 0:00:37]} 48. Re4 {[%emt 0:00:00] [#]} Qg3+ {[%emt 0:01:35]} ({Not} 48... Qxc7 49. Rxe7 Qg3+ 50. Kf1 Nxe7 51. Qxc4 $17) 49. Kf1 {[%emt 0:00:00]} c3 $1 {[%emt 0:02:18] ( -> ...Ba6+)} 50. Rxe7 {[%emt 0:00:00]} Nxe7 {[%emt 0:00:14]} 51. Qxc3 {[%emt 0:00:00]} Ba6+ {[%emt 0:00:06]} 52. Nc4 {[%emt 0:00:00]} Bxc4+ {[%emt 0:00:02][%mdl 64] Deflection} 53. Qxc4 {[%emt 0:00:00]} Qxf3+ {[%emt 0:00:02]} 54. Ke1 {[%emt 0:00:00]} Qe3+ {[%emt 0:00:37]} 55. Kd1 {[%emt 0:00:00]} Qxh3 {[%emt 0:00:53]} 56. Qd4 {[%emt 0:00:00] Qd8+ is the strong threat.} Qh1+ {[%emt 0:01:51]} 57. Kd2 {[%emt 0:01:45]} Qh2+ {[%emt 0:00:02]} 58. Kd1 {[%emt 0:00:09] Strongly threatening Qd8+.} Qxc7 {[%emt 0:00:07]} 59. Qh8+ {[%emt 0:00:04]} Ng8 {[%emt 0:00:02] Both players deserved the win here.  Weighted Error Value: White=0.62/Black=0.55} 0-1